[Event "Lviv Tradition June 2018"]
[Site "Lviv"]
[Date "2018.06.17"]
[Round "10"]
[White "Shkuran, Danylo"]
[Black "Ozenir, Ekin Baris"]
[Result "1-0"]
[ECO "B00"]
[WhiteElo "2368"]
[BlackElo "2320"]
[Annotator "NA"]
[PlyCount "47"]
[EventDate "2018.??.??"]
[EventType "schev"]
[EventCountry "UKR"]
[SourceTitle "playchess.com"]
[Source "ChessBase"]
[SourceQuality "1"]
[TimeControl "5400+30"]

{[%evp 8,47,78,33,29,9,49,29,37,70,92,94,110,32767,32767,32767,32767,32767,32767,32767,32767,32767,32767,32767,32767,32767,32767,252,992,32767,32767,1038,32767,590,32767,32767,29992,29993,32767,32767,32767,29997]} 1. e4 {[%emt 0:00:00]} Nc6 {[%emt 0:00:27]} 2. Nf3 {[%emt 0:00:00]} d6 {[%emt 0:00:12]} 3. d4 {[%emt 0:00:05]} Nf6 {[%emt 0:00:07]} 4. Nc3 {[%emt 0:01:14]} g6 {[%emt 0:00:13]} 5. Bf4 {[%emt 0:01:37]} Bg7 {[%emt 0:04:03]} 6. d5 {[%emt 0:04:03] LiveBook: 6 Games B08: Pirc-Ufimzew-Verteidigung} (6. Qd2 Bg4 7. Be2 O-O 8. d5 Bxf3 9. Bxf3 Ne5 10. Bxe5 dxe5 11. Qd3 Re8 12. Rd1 Qd6 13. O-O a6 14. a3 e6 15. Qc4 exd5 16. Nxd5 Nxd5 17. Rxd5 {1-0 (51) Vitiugov,N (2726)-Saric,I (2652) Tallinn 2016}) 6... Nb8 {[%emt 0:01:38]} 7. Qd2 {[%emt 0:00:15]} Nbd7 {[%emt 0:08:59]} 8. Bh6 {[%emt 0:03:14]} Bxh6 $146 {[%emt 0:06:25]} ({Vorgänger:} 8... O-O 9. h4 e5 10. dxe6 fxe6 11. Bxg7 Kxg7 12. O-O-O e5 13. Ne1 {½-½ (24) Doberitz,P (2220)-Diebl,L (2221) Germany 2009}) 9. Qxh6 {[%emt 0:09:26]} c6 {[%emt 0:04:43]} 10. O-O-O {[%emt 0:20:22]} Qb6 {[%emt 0:03:40]} 11. Nd4 {[%emt 0:01:30]} c5 {[%emt 0:08:16]} 12. Nf3 {[%emt 0:03:42]} a6 {[%emt 0:07:26]} 13. Ng5 {[%emt 0:02:07]} Qa5 {[%emt 0:03:49]} 14. f4 {[%emt 0:11:26]} b5 {[%emt 0:07:05]} 15. e5 {[%emt 0:02:02]} dxe5 {[%emt 0:03:43]} 16. d6 {[%emt 0:00:15]} exd6 {[%emt 0:06:52]} 17. Rxd6 {[%emt 0:06:55]} b4 $2 {[%emt 0:04:44]} (17... Bb7) 18. Qg7 {[%emt 0:01:31]} Rf8 {[%emt 0:00:28]} 19. Bc4 {[%emt 0:01:35]} ({Stronger than} 19. Nxf7 Rxf7 20. Re6+ Kd8 $11) 19... bxc3 {[%emt 0:03:50]} 20. Bxf7+ {[%emt 0:00:17]} Ke7 {[%emt 0:00:34]} 21. Rxf6 {[%emt 0:00:33]} cxb2+ {[%emt 0:02:07]} 22. Kb1 {[%emt 0:00:21]} Nxf6 {[%emt 0:01:15]} 23. Rd1 {[%emt 0:06:40]} Bd7 {[%emt 0:04:04]} 24. Be6+ {[%emt 0:00:52]} 1-0